lending/lending_fUSD_20260209
["ID","MTS","AMOUNT","RATE_DAILY","PERIOD"]
[404910984,1770672634202,-505.35793479,0.00016182,2]
[404910985,1770672634212,-500.0,0.00016182,2]
[404910986,1770672634224,-500.0,0.00016182,2]
[404910987,1770672634233,-500.0,0.00016182,2]
[404910988,1770672634243,-424.90409291,0.00016182,2]
[404910989,1770672634253,-791.62,0.00016182,2]
[404910990,1770672634263,-791.62,0.00016182,2]
[404910991,1770672634282,-791.62,0.00016182,2]
[404910992,1770672634296,-791.62,0.00016182,2]
[404910993,1770672634306,-791.62,0.00016182,2]
[404910994,1770672634317,-791.62,0.00016182,2]
[404910995,1770672634327,-791.62,0.00016182,2]
[404910996,1770672634338,-791.62,0.00016182,2]
[404910997,1770672634347,-791.62,0.00016182,2]
[404910998,1770672634357,-791.62,0.00016182,2]
[404910999,1770672634368,-791.62,0.00016182,2]
[404911000,1770672634379,-791.62,0.00016182,2]
[404911001,1770672634389,-791.62,0.00016182,2]
[404911002,1770672634398,-791.62,0.00016182,2]
[404911003,1770672634408,-524.50136006,0.00016182,2]
[404911004,1770672634418,-1514.41,0.00016182,2]
[404911005,1770672634427,-500.0,0.00016182,2]
[404911006,1770672634437,-500.0,0.00016182,2]
[404911007,1770672634447,-500.0,0.00016182,2]
[404911008,1770672634457,-500.0,0.00016182,2]
[404911009,1770672634467,-464.20097092,0.00016182,2]
[404911010,1770672634477,-500.0,0.00016182,2]
[404911011,1770672634487,-500.0,0.00016182,2]
[404911012,1770672634496,-167.38350037,0.00016182,2]
[404911013,1770672634506,-500.0,0.00016182,2]
[404911014,1770672634517,-500.0,0.00016182,2]
[404911015,1770672634526,-500.0,0.00016182,2]
[404911016,1770672634535,-500.0,0.00016182,2]
[404911017,1770672634545,-500.0,0.00016182,2]
[404911018,1770672634555,-500.0,0.00016182,2]
[404911019,1770672634565,-500.0,0.00016182,2]
[404911020,1770672634574,-500.0,0.00016182,2]
[404911021,1770672634584,-500.0,0.00016182,2]
[404911022,1770672634594,-500.0,0.00016182,2]
[404911023,1770672634604,-500.0,0.00016182,2]
[404911024,1770672634613,-500.0,0.00016182,2]
[404911025,1770672634623,-500.0,0.00016182,2]
[404911026,1770672634632,-500.0,0.00016182,2]
[404911027,1770672634642,-37941.18834877,0.00016183,2]
[404911028,1770672634652,-10295.40123143,0.00016183,2]
[404911029,1770672634665,-20000.02923703,0.000162,5]
[404911030,1770672634675,-494.0,0.00016237,2]
[404911031,1770672634685,-500.0,0.00016255,2]
[404911032,1770672634695,-500.0,0.00016281,2]
[404911033,1770672634705,-500.0,0.00016281,2]
[404911034,1770672634715,-500.0,0.00016281,2]
[404911035,1770672634725,-500.0,0.00016281,2]
[404911036,1770672634734,-500.0,0.00016281,2]
[404911037,1770672634744,-158.87604103,0.00016281,2]
[404911038,1770672634753,-500.0,0.00016281,2]
[404911039,1770672634763,-516.13994228,0.00016281,2]
[404911040,1770672634773,-791.62,0.00016281,2]
[404911041,1770672634782,-791.62,0.00016281,2]
[404911042,1770672634792,-791.62,0.00016281,2]
[404911043,1770672634802,-791.62,0.00016281,2]
[404911044,1770672634811,-791.62,0.00016281,2]
[404911045,1770672634820,-791.62,0.00016281,2]
[404911046,1770672634830,-791.62,0.00016281,2]
[404911047,1770672634839,-791.62,0.00016281,2]
[404911048,1770672634849,-791.62,0.00016281,2]
[404911049,1770672634859,-791.64602839,0.00016281,2]
[404911050,1770672634869,-500.0,0.00016281,2]
[404911051,1770672634879,-642.18068599,0.00016281,2]
[404911052,1770672634888,-381.71449547,0.00016281,2]
[404911053,1770672634899,-500.0,0.00016281,2]
[404911054,1770672634908,-500.0,0.00016281,2]
[404911055,1770672634918,-500.0,0.00016281,2]
[404911056,1770672634927,-500.0,0.00016281,2]
[404911057,1770672634936,-500.0,0.00016281,2]
[404911058,1770672634946,-500.0,0.00016281,2]
[404911059,1770672634959,-500.0,0.00016281,2]
[404911060,1770672634969,-1063.54173058,0.00016281,5]
[404911061,1770672634978,-500.0,0.00016281,2]
[404911062,1770672634988,-509.29354384,0.00016281,2]
[404911063,1770672634997,-500.0,0.00016281,2]
[404911064,1770672635007,-500.0,0.00016281,2]
[404911065,1770672635016,-500.0,0.00016281,2]
[404911066,1770672635026,-500.0,0.00016281,2]
[404911067,1770672635035,-500.0,0.00016281,2]
[404911068,1770672635045,-500.0,0.00016281,2]
[404911069,1770672635055,-500.0,0.00016281,2]
[404911070,1770672635065,-363.6241669,0.00016281,2]
[404911071,1770672635074,-1500000.0,0.00016282,2]
[404911072,1770672635084,-8439.5664,0.00016283,2]
[404911073,1770672635093,-1000.0,0.00016283,2]
[404911074,1770672635104,-33312.6077,0.00016283,2]
[404911075,1770672635113,-296.0,0.00016319,2]
[404911076,1770672635124,-238.11,0.000164,2]
[404911077,1770672635135,-197.0,0.00016401,2]
[404911078,1770672635144,-6229.44,0.00016423,2]
[404911079,1770672635155,-510.0,0.00016425,2]
[404911080,1770672635165,-227.45,0.00016438,2]
[404911081,1770672635175,-1514.41,0.00016456,2]
[404911082,1770672635186,-7336.55972421,0.00016459,2]
[404911083,1770672635195,-500.0,0.00016473,2]
[404911084,1770672635206,-420.0,0.00016521,2]
[404911085,1770672635216,-300.0,0.00016525,2]
[404911086,1770672635226,-250.0,0.00016525,2]
[404911087,1770672635235,-195.0,0.00016525,2]
[404911088,1770672635247,-500.0,0.00016529,2]
[404911089,1770672635257,-1680.0,0.00016604,2]
[404911090,1770672635267,-200.0,0.0001662,2]
[404911091,1770672635277,-500.0,0.0001662,2]
[404911092,1770672635288,-200.0,0.0001662,2]
[404911093,1770672635303,-1489.47,0.00016696,2]
[404911094,1770672635314,-252.38748138,0.00016696,2]
[404911095,1770672635323,-165.74,0.00016712,2]
[404911096,1770672635333,-1514.41,0.0001673,2]
[404911097,1770672635343,-500.0,0.00016803,2]
[404911098,1770672635353,-500.0,0.00016874,2]
[404911099,1770672635365,-3021.21,0.00016875,2]
[404911100,1770672635374,-227.93261293,0.00016896,2]
[404911101,1770672635384,-480.64471691,0.00016898,2]
[404911102,1770672635393,-248.65240674,0.00016898,2]
[404911103,1770672635405,-2175.03113396,0.00016898,2]
[404911104,1770672635415,-282.0,0.00016934,2]
[404911105,1770672635424,-164.01,0.00016973,2]
[404911106,1770672635435,-226.83091402,0.0001699,2]
[404911107,1770672635450,-875525.87300093,0.00017,2]
[404911108,1770672635460,-500.0,0.00017,2]
[404911109,1770672635469,-1514.41,0.00017004,2]
[404911110,1770672635479,-241.86,0.00017029,2]
[404911111,1770672635488,-500.0,0.00017077,2]
[404911112,1770672635498,-200.0,0.00017168,2]
[404911113,1770672635507,-500.0,0.00017168,2]
[404911114,1770672635517,-200.0,0.00017168,2]
[404911115,1770672635527,-169.0,0.00017277,2]
[404911116,1770672635536,-1514.41,0.00017278,2]
[404911117,1770672635546,-283.9019215,0.00017307,2]
[404911118,1770672635556,-500.0,0.00017351,2]
[404911119,1770672635567,-1427.0,0.00017428,2]
[404911120,1770672635577,-1489.47,0.00017455,2]
[404911121,1770672635587,-10696.01596224,0.000175,2]
[404911122,1770672635597,-1514.41,0.00017552,2]
[404911123,1770672635607,-300.0,0.0001758,2]
[404911124,1770672635617,-600.0,0.0001758,2]
[404911125,1770672635626,-866.0,0.00017619,2]
[404911126,1770672635635,-500.0,0.00017625,2]
[404911127,1770672635647,-500.0,0.0001768,2]
[404911128,1770672635657,-783.40878762,0.000177,2]
[404911129,1770672635667,-403.0,0.000177,5]
[404911130,1770672635678,-1427.0,0.00017712,2]
[404911131,1770672635687,-200.0,0.00017716,2]
[404911132,1770672635697,-500.0,0.00017716,2]
[404911133,1770672635706,-200.0,0.00017716,2]
[404911134,1770672635716,-176.0,0.00017736,2]
[404911135,1770672635725,-1427.0,0.00017752,2]
[404911136,1770672635735,-1427.0,0.00017776,2]
[404911137,1770672635744,-10000.0,0.000178,2]
[404911138,1770672635754,-500.0,0.00017807,2]
[404911139,1770672635763,-250.0,0.00017808,10]
[404911140,1770672635772,-250.0,0.00017808,10]
[404911141,1770672635782,-250.0,0.00017808,10]
[404911142,1770672635791,-250.0,0.00017808,10]
[404911143,1770672635801,-250.0,0.00017808,10]
[404911144,1770672635810,-250.0,0.00017808,10]
[404911145,1770672635820,-250.0,0.00017808,10]
[404911146,1770672635829,-250.0,0.00017808,10]
[404911147,1770672635840,-250.0,0.00017808,10]
[404911148,1770672635850,-185.602916,0.00017808,10]
[404911149,1770672635859,-1514.41,0.00017826,2]
[404911150,1770672635869,-1427.0,0.0001783,2]
[404911151,1770672635879,-774.42577446,0.0001786,2]
[404911152,1770672635888,-1427.0,0.0001787,2]
[404911153,1770672635898,-500.0,0.00017899,2]
[404911154,1770672635907,-500.0,0.00017899,2]
[404911155,1770672635916,-500.0,0.00017899,2]
[404911156,1770672635925,-500.0,0.00017899,2]
[404911157,1770672635935,-500.0,0.00017899,2]
[404911158,1770672635943,-500.0,0.00017899,2]
[404911159,1770672635952,-500.0,0.00017899,2]
[404911160,1770672635962,-500.0,0.00017899,2]
[404911161,1770672635971,-500.0,0.00017899,2]
[404911162,1770672635980,-500.0,0.00017899,2]
[404911163,1770672635990,-509.28197687,0.00017899,2]
[404911164,1770672636000,-500.0,0.000179,2]
[404911165,1770672636010,-500.0,0.000179,2]
[404911166,1770672636019,-227.93261293,0.000179,2]
[404911167,1770672636030,-480.64471691,0.00017904,2]
[404911168,1770672636040,-248.65240674,0.00017904,2]
[404911169,1770672636050,-1427.0,0.00017953,2]
[404911170,1770672636060,-1427.0,0.00017983,2]
[404911171,1770672636069,-151.0,0.00017997,2]
[404911172,1770672636078,-151.0,0.00017997,2]
[404911173,1770672636087,-151.0,0.00017997,2]
[404911174,1770672636097,-1316.12626123,0.00017999,5]
[404911175,1770672636107,-1063.54173058,0.00017999,5]
[404911176,1770672636116,-300.0,0.00017999,2]
[404911177,1770672636126,-666.0,0.00017999,2]
[404911178,1770672636135,-1133598.19536266,0.00018,2]
[404911179,1770672636145,-7505.7239404,0.00018,2]
[404911180,1770672636154,-109592.64721999,0.00018,2]
[404911181,1770672636163,-1214567.16707674,0.00018,2]
[404911184,1770672637945,-2175.03113396,0.00017904,2]
[404911185,1770672637957,-7455009.50016225,0.00018,2]
[404911186,1770672637966,-1427.0,0.00018004,2]
[404911187,1770672637976,-174.02,0.00018028,2]
[404911188,1770672637985,-174.61919141,0.00018032,2]
[404911189,1770672637994,-322.6107,0.00018032,2]
[404911190,1770672638003,-500.0,0.00018032,2]
[404911191,1770672638013,-500.0,0.00018032,2]
[404911192,1770672638023,-500.0,0.00018032,2]
[404911193,1770672638033,-500.0,0.00018032,2]
[404911194,1770672638043,-500.0,0.00018032,2]
[404911195,1770672638052,-500.0,0.00018032,2]
[404911197,1770672638061,-500.0,0.00018032,2]
[404911199,1770672638070,-500.0,0.00018032,2]
[404911201,1770672638079,-500.0,0.00018032,2]
[404911202,1770672638089,-500.0,0.00018032,2]
[404911203,1770672638098,-576.93318184,0.00018032,2]
[404911204,1770672638108,-578.20924308,0.00018032,2]
[404911205,1770672638117,-1427.0,0.00018054,2]
[404911206,1770672638127,-587.0,0.00018079,2]
[404911207,1770672638136,-1514.41,0.000181,2]
[404911208,1770672638146,-1427.0,0.00018116,2]
[404911209,1770672638156,-200.0,0.00018128,2]
[404911210,1770672638165,-1489.47,0.00018214,2]
[404911212,1770672638175,-1427.0,0.0001825,2]
[404911214,1770672638184,-2351.0,0.00018263,2]
[404911216,1770672638193,-200.0,0.00018264,2]
[404911218,1770672638203,-1427.0,0.00018264,2]
[404911220,1770672638212,-1427.0,0.0001829,2]
[404911222,1770672638223,-374.6073167,0.00018317,2]
[404911224,1770672638233,-1427.0,0.00018372,2]
[404911226,1770672638243,-1514.41,0.00018374,2]
[404911228,1770672638252,-1427.0,0.00018402,2]
[404911230,1770672638262,-181.08010149,0.0001858,2]
[404911232,1770672638272,-1427.0,0.00018592,2]
[404911234,1770672638281,-14465.2878161,0.0001862,2]
[404911236,1770672638294,-1514.41,0.00018648,2]
[404911238,1770672638304,-1427.0,0.00018715,2]
[404911240,1770672638315,-1427.0,0.00018836,2]
[404911243,1770672638325,-1427.0,0.00018858,2]
[404911244,1770672638335,-1427.0,0.0001886,2]
[404911245,1770672638344,-176.0,0.00018899,2]
[404911246,1770672638354,-1473.0,0.00018905,2]
[404911247,1770672638363,-1514.41,0.00018922,2]
[404911248,1770672638373,-176.0,0.00018972,2]
[404911249,1770672638384,-1427.0,0.00018974,2]
[404911250,1770672638393,-187.78006525,0.00019128,2]
[404911251,1770672638403,-3000.0,0.00019178,2]
[404911252,1770672638413,-1514.41,0.00019196,2]
[404911253,1770672638422,-1484.9265958,0.00019399,2]
[404911254,1770672638432,-334.5472959,0.00019401,2]
[404911255,1770672638442,-1514.41,0.0001947,2]
[404911256,1770672638452,-247.48776597,0.00019574,2]
[404911257,1770672638462,-302.18091565,0.00019642,2]
[404911258,1770672638473,-280.80805675,0.00019676,2]
[404911259,1770672638482,-1514.41,0.00019744,2]
[404911260,1770672638492,-247.48776597,0.00019767,2]
[404911261,1770672638502,-695.0,0.00019785,2]
[404911262,1770672638512,-250.0,0.00019848,2]
[404911263,1770672638522,-247.48776597,0.00019961,2]
[404911264,1770672638532,-300.0,0.00019999,2]
[404911265,1770672638543,-666.0,0.00019999,2]
[404911266,1770672638552,-281019.02276726,0.0002,4]
[404911267,1770672638561,-1514.41,0.00020018,2]
[404911268,1770672638571,-345.34961788,0.00020063,2]
[404911269,1770672638580,-1785.40154488,0.00020076,2]
[404911270,1770672638590,-150.64789896,0.00020079,2]
[404911271,1770672638600,-3292.0,0.00020087,2]
[404911272,1770672638609,-300.0,0.00020101,14]
[404911273,1770672638620,-23680.91,0.00020145,2]
[404911274,1770672638630,-8214.38,0.00020145,2]
[404911275,1770672638640,-1514.45311889,0.00020292,2]
[404911276,1770672638650,-309.0,0.00020298,2]
[404911277,1770672638660,-374.6073167,0.00020561,2]
[404911278,1770672638669,-160.0,0.0002077,2]
[404911279,1770672638679,-383.59785608,0.00020771,2]
[404911280,1770672638690,-1556.61134419,0.00020903,2]
[404911281,1770672638700,-600.0,0.00020974,2]
[404911282,1770672638710,-14465.2878161,0.00021059,2]
[404911283,1770672638720,-12538.23,0.00021068,2]
[404911284,1770672638730,-3562.13408748,0.00021547,2]
[404911285,1770672638739,-270.97312383,0.0002188,2]
[404911286,1770672638750,-300.0,0.00021999,2]
[404911287,1770672638759,-170.35,0.00022,7]
[404911288,1770672638769,-156859.34085366,0.00022,4]
[404911289,1770672638779,-114886.49,0.00022,2]
[404911290,1770672638789,-4609.0,0.00022093,2]
[404911291,1770672638799,-165.74,0.00022603,2]
[404911292,1770672638808,-374.6073167,0.00022805,2]
[404911293,1770672638818,-160.0,0.00023,2]
[404911294,1770672638827,-5338.86663007,0.00023018,2]
[404911295,1770672638837,-521.40565726,0.00023051,2]
[404911296,1770672638846,-14465.2878161,0.00023499,2]
[404911297,1770672638855,-1272.0,0.00023978,2]
[404911298,1770672638864,-918.0,0.00023978,2]
[404911299,1770672638874,-1206.0,0.00023978,2]
[404911300,1770672638883,-1336.0,0.00023978,2]
[404911301,1770672638893,-2448.0,0.00023978,2]
[404911302,1770672638902,-500.0,0.00024076,2]
[404911303,1770672638912,-3152.27505981,0.000241,2]
[404911304,1770672638922,-2574.0,0.000243,2]
[404911305,1770672638932,-5601.33848309,0.00024489,2]
[404911306,1770672638942,-1000.0,0.00024658,2]
[404911307,1770672638951,-600.0,0.00025546,2]
[404911308,1770672638961,-1556.61134419,0.00025625,2]
[404911309,1770672638971,-204.57,0.00025826,2]
[404911310,1770672638981,-164.01,0.00025827,2]
[404911311,1770672638990,-114886.49,0.000259,2]
[404911312,1770672638999,-6731.98646461,0.0002596,2]
[404911313,1770672639009,-241.86,0.00026179,2]
[404911314,1770672639019,-3409.0,0.00026792,2]
[404911315,1770672639028,-1272.0,0.00026978,2]
[404911316,1770672639037,-918.0,0.00026978,2]
[404911317,1770672639201,-1206.0,0.00026978,2]
[404911318,1770672639233,-1336.0,0.00026978,2]
[404911319,1770672639242,-2448.0,0.00026978,2]
[404911320,1770672639252,-164.56785167,0.00027,2]
[404911321,1770672639262,-150.0,0.00027369,2]
[404911322,1770672639272,-500.0,0.00027397,20]
[404911323,1770672639281,-7115.59917267,0.00027431,2]
[404911324,1770672639294,-165.74,0.00028493,2]
[404911325,1770672639303,-7862.63444626,0.00028902,2]
[404911326,1770672639314,-264.99,0.00029708,22]
[404911327,1770672639324,-1272.0,0.00029978,2]
[404911328,1770672639334,-918.0,0.00029978,2]
[404911329,1770672639343,-1206.0,0.00029978,2]
[404911330,1770672639353,-1333.0,0.00029978,2]
[404911331,1770672639364,-2445.0,0.00029978,2]
[404911332,1770672639374,-153.58,0.0003,2]
[404911333,1770672639383,-521.40565726,0.00030119,2]
[404911334,1770672639392,-1556.61134419,0.00030346,2]
[404911335,1770672639401,-8892.33171527,0.00030374,2]
[404911336,1770672639411,-477.76,0.00031539,2]
[404911337,1770672639420,-8993.28242791,0.00031845,2]
[404911338,1770672639429,-114886.49,0.000319,2]
[404911339,1770672639438,-510.0,0.00032616,2]
[404911340,1770672639448,-500.0,0.00032877,2]
[404911341,1770672639457,-500.0,0.00032877,2]
[404911342,1770672639466,-500.0,0.00032877,2]
[404911343,1770672639478,-500.0,0.00032877,2]
[404911344,1770672639487,-500.0,0.00032877,2]
[404911345,1770672639497,-361.709847,0.00032877,2]
[404911346,1770672639506,-3350.69333007,0.00032879,2]
[404911347,1770672639515,-181.59,0.000329,14]
[404911348,1770672639526,-1549.78,0.000329,2]
[404911349,1770672639535,-477.76,0.0003296,2]
[404911350,1770672639545,-918.0,0.00032978,2]
[404911351,1770672639554,-1205.0,0.00032978,2]
[404911352,1770672639564,-500.0,0.00033315,2]
[404911353,1770672639573,-10123.93040957,0.00033316,2]
[404911354,1770672639583,-164.01,0.00033763,2]
[404911355,1770672639593,-170.35,0.000343,14]
[404911356,1770672639602,-241.86,0.00034354,2]
[404911357,1770672639612,-477.76,0.0003438,2]
[404911358,1770672639622,-211.0,0.00034565,2]
[404911359,1770672639631,-1000.0,0.00034613,2]
[404911360,1770672639641,-1000.0,0.00034613,2]
[404911361,1770672639650,-1000.0,0.00034613,2]
[404911362,1770672639660,-1000.0,0.00034613,2]
[404911363,1770672639670,-1000.0,0.00034613,2]
[404911364,1770672639680,-1000.0,0.0003468,2]
[404911365,1770672639689,-1000.0,0.0003468,2]
[404911366,1770672639698,-1000.0,0.0003468,2]
[404911367,1770672639708,-1000.0,0.0003468,2]
[404911368,1770672639717,-1000.0,0.0003468,2]
[404911369,1770672639730,-10669.06425786,0.00034787,2]
[404911370,1770672639739,-150.0,0.00034904,2]
[404911371,1770672639748,-500.0,0.00035,2]
[404911372,1770672639757,-1556.61134419,0.00035067,2]
[404911373,1770672639767,-918.33,0.0003561,7]
[404911374,1770672639776,-114886.49,0.000357,2]
[404911375,1770672639786,-3510.0,0.000358,3]
[404911376,1770672639795,-2000.0,0.000359,2]
[404911377,1770672639804,-918.0,0.00035978,2]
[404911378,1770672639814,-219.59230735,0.00036158,15]
[404911379,1770672639823,-11254.57839122,0.00036258,2]
[404911380,1770672639832,-1549.78,0.000365,2]
[404911381,1770672639841,-254.02,0.000365,30]
[404911382,1770672639851,-5529.0,0.000366,5]
[404911383,1770672639860,-150.0,0.00036649,2]
[404911384,1770672639870,-510.0,0.00036924,7]
[404911385,1770672639880,-6625.580416,0.00037,30]
[404911386,1770672639889,-521.40565726,0.00037188,10]
[404911387,1770672639898,-12385.22637287,0.00037729,2]
[404911388,1770672639907,-7159.8647989,0.00038,30]
[404911389,1770672639916,-152.0,0.00038223,3]
[404911390,1770672639925,-1999.0,0.00038356,120]
[404911391,1770672639935,-150.0,0.00038482,2]
[404911392,1770672639945,-614.71,0.000388,30]
[404911393,1770672639954,-332.67025276,0.000388,5]
[404911394,1770672639963,-234436.36733861,0.000388,7]
[404911395,1770672639974,-500.0,0.000388,5]
[404911396,1770672639983,-500.0,0.000388,5]
[404911397,1770672639992,-166.55591118,0.000388,2]
[404911398,1770672640002,-195.857,0.00038978,2]
[404911399,1770672640011,-12445.79680046,0.000392,2]
[404911400,1770672640020,-1000.0,0.00039348,5]
[404911401,1770672640030,-1000.0,0.00039348,5]
[404911402,1770672640039,-2000.0,0.000396,2]
[404911403,1770672640049,-254.02,0.000396,30]
[404911404,1770672640058,-2942.913,0.00039636,55]
[404911405,1770672640067,-1556.61134419,0.00039789,2]
[404911406,1770672640077,-1254.12944685,0.00039896,5]
[404911407,1770672640086,-1500.0,0.00039896,5]
[404911408,1770672640095,-150.0,0.00039912,2]
[404911409,1770672640104,-150.0,0.00039912,2]
[404911410,1770672640113,-197.2441635,0.00039912,2]
[404911411,1770672640123,-2929.71,0.0004,120]
[404911412,1770672640134,-1694.06,0.0004,120]
[404911413,1770672640143,-1247.39,0.0004,120]
[404911414,1770672640153,-15966.45640123,0.0004,30]
[404911415,1770672640162,-9524.8103471,0.0004,30]
[404911416,1770672640171,-500.0,0.0004,2]
[404911417,1770672640181,-300.0,0.0004016,2]
[404911418,1770672640191,-853.10618091,0.0004016,2]
[404911419,1770672640200,-305.17282609,0.0004016,2]
[404911420,1770672640210,-300.66832767,0.0004016,2]
[404911421,1770672640221,-881.82002945,0.0004016,2]
[404911422,1770672640231,-300.0,0.0004016,2]
[404911423,1770672640240,-300.80662144,0.0004016,2]
[404911424,1770672640249,-300.0,0.0004016,2]
[404911425,1770672640259,-300.0,0.0004016,2]
[404911426,1770672640268,-306.19819169,0.0004016,2]
[404911427,1770672640278,-300.0,0.0004016,2]
[404911428,1770672640288,-300.0,0.0004016,2]
[404911429,1770672640304,-457.40429292,0.0004016,2]
[404911431,1770672640313,-300.0,0.0004016,2]
[404911432,1770672640322,-300.0,0.0004016,2]
[404911434,1770672640335,-300.6911489,0.0004016,2]
[404911436,1770672640345,-300.69745339,0.0004016,2]
[404911439,1770672640355,-370.28201213,0.0004016,2]
[404911440,1770672640364,-300.0,0.0004016,2]
[404911441,1770672640374,-300.0,0.0004016,2]
[404911442,1770672640383,-301.23008757,0.0004016,2]
[404911443,1770672640392,-516.79047854,0.0004016,2]
[404911444,1770672640401,-305.17533587,0.0004016,2]
[404911445,1770672640411,-300.69136891,0.0004016,2]
[404911446,1770672640420,-300.87271542,0.0004016,2]
[404911447,1770672640430,-300.0,0.0004016,2]
[404911448,1770672640440,-300.0,0.0004016,2]
[404911449,1770672640450,-300.0,0.0004016,2]
[404911450,1770672640459,-571.85515654,0.0004016,2]
[404911451,1770672640468,-300.70557669,0.0004016,2]
[404911452,1770672640478,-300.77992462,0.0004016,2]
[404911453,1770672640488,-300.89889414,0.0004016,2]
[404911454,1770672640498,-300.0,0.0004016,2]
[404911455,1770672640507,-300.73218379,0.0004016,2]
[404911456,1770672640518,-852.25799027,0.0004016,2]
[404911457,1770672640528,-304.86948019,0.0004016,2]
[404911458,1770672640539,-880.9434871,0.0004016,2]
[404911459,1770672640548,-300.73958241,0.0004016,2]
[404911460,1770672640558,-300.0,0.0004016,2]
[404911461,1770672640568,-300.74566807,0.0004016,2]
[404911462,1770672640578,-300.75476938,0.0004016,2]
[404911463,1770672640587,-300.78018991,0.0004016,2]
[404911464,1770672640596,-300.8104619,0.0004016,2]
[404911465,1770672640606,-456.94963306,0.0004016,2]
[404911466,1770672640616,-301.18696634,0.0004016,2]
[404911467,1770672640625,-300.90749469,0.0004016,2]
[404911468,1770672640634,-369.91394781,0.0004016,2]
[404911469,1770672640643,-301.18052884,0.0004016,2]
[404911470,1770672640653,-300.77349068,0.0004016,2]
[404911471,1770672640662,-1549.78,0.000404,30]
[404911472,1770672640672,-150.0,0.00040406,2]
[404911473,1770672640682,-708.8616414,0.00040444,5]
[404911474,1770672640691,-1999.0,0.00040547,120]
[404911475,1770672640702,-13515.87435452,0.00040671,2]
[404911476,1770672640712,-510.0,0.00041232,12]
[404911477,1770672640722,-11411.0,0.000417,117]
[404911478,1770672640732,-500.0,0.00042,2]
[404911479,1770672640741,-200.0,0.00042083,120]
[404911480,1770672640751,-254.02,0.000421,30]
[404911481,1770672640761,-14040.81806029,0.00042142,2]
[404911482,1770672640770,-114886.49,0.000424,14]
[404911483,1770672640780,-150.0,0.00042426,120]
[404911484,1770672640789,-164.01,0.00042461,14]
[404911485,1770672640799,-5008.15573244,0.0004253,11]
[404911486,1770672640808,-5000.0,0.0004253,8]
[404911487,1770672640818,-5000.0,0.0004253,12]
[404911488,1770672640828,-5000.0,0.0004253,9]
[404911489,1770672640838,-5000.0,0.0004253,10]
[404911490,1770672640848,-961.5,0.00042608,60]
[404911491,1770672640857,-1999.0,0.00042739,120]
[404911492,1770672640867,-10000.0,0.000428,30]
[404911493,1770672640876,-354.4328496,0.00042853,2]
[404911494,1770672640886,-161.24,0.00042918,14]
[404911495,1770672640895,-350.0,0.00042941,2]
[404911496,1770672640905,-500.0,0.00043,2]
[404911497,1770672640914,-114886.49,0.00043,2]
[404911498,1770672640924,-200.0,0.00043068,120]
[404911499,1770672640933,-170.35,0.000432,14]
[404911500,1770672640943,-26372.23108917,0.00043221,30]
[404911501,1770672640952,-164.01,0.00043223,14]
[404911502,1770672640961,-2000.0,0.000433,2]
[404911503,1770672640970,-161.24,0.00043306,14]
[404911504,1770672640980,-2171.8836588,0.00043336,2]
[404911505,1770672640989,-254.02,0.000434,30]
[404911506,1770672640998,-114886.49,0.000434,14]
[404911507,1770672641008,-14646.52233617,0.00043613,2]
[404911508,1770672641018,-9208.6898788,0.00043676,120]
[404911509,1770672641027,-161.24,0.00043694,14]
[404911510,1770672641037,-1549.78,0.000437,30]